bitfinex-derivatives/quotes_ETHF0:USTF0_20250320
["timestamp","ask_amount","ask_price","bid_price","bid_amount"]
[1742459227463,3.213,2013.1,2013.0,0.99342]
[1742459227648,4.5202,2013.1,2013.0,3.19612]
[1742459227851,4.5202,2013.1,2013.0,3.94632]
[1742459231251,0.00746343,2013.2,2013.1,0.99337]
[1742459231453,4.58126343,2013.2,2013.1,2.29187]
[1742459231960,5.57458343,2013.2,2013.1,2.29187]
[1742459232856,1.36826343,2013.2,2013.1,2.29187]
[1742459233055,4.58126343,2013.2,2013.1,2.29187]
[1742459236263,3.22046343,2013.2,2013.1,2.29187]
[1742459236464,0.00746343,2013.2,2013.1,2.29187]
[1742459238655,0.00746343,2013.2,2013.1,2.9632341]
[1742459239056,0.00746343,2013.2,2013.1,2.29187]
[1742459239372,0.00746343,2013.2,2013.1,2.96321624]
[1742459239866,0.00746343,2013.2,2013.1,2.29187]
[1742459241476,0.81256343,2013.2,2013.1,2.29187]
[1742459241766,2.19016343,2013.2,2013.1,2.29187]
[1742459243671,2.19016343,2013.2,2013.1,5.49967]
[1742459249274,3.18348343,2013.2,2013.1,4.5063]
[1742459249471,2.19016343,2013.2,2013.1,5.49967]
[1742459249668,2.92456343,2013.2,2013.1,5.49967]
[1742459255671,1.38506343,2013.2,2013.1,5.49967]
[1742459256678,0.00746343,2013.2,2013.1,5.49967]
[1742459257373,1.40206343,2013.2,2013.1,5.49967]
[1742459261378,2.14236343,2013.2,2013.1,5.49967]
[1742459265180,1.40206343,2013.2,2013.1,5.49967]
[1742459265374,0.00746343,2013.2,2013.1,5.49967]
[1742459265976,1.37096343,2013.2,2013.1,5.49967]
[1742459267677,0.00746343,2013.2,2013.1,6.17316932]
[1742459267882,2.0917,2013.5,2013.4,0.99322]
[1742459268084,5.3027,2013.5,2013.4,0.99322]
[1742459268581,6.29591,2013.5,2013.4,0.99322]
[1742459268980,5.3027,2013.5,2013.4,0.99322]
[1742459269480,5.3027,2013.5,2013.4,4.20102]
[1742459270482,1.3152,2013.5,2013.4,4.20102]
[1742459270785,4.5262,2013.5,2013.4,4.20102]
[1742459271586,3.211,2013.5,2013.4,4.20102]
[1742459272177,1.3331,2013.5,2013.4,4.20102]
[1742459274584,3.9797,2013.6,2013.5,0.99317]
[1742459274775,5.3741,2013.6,2013.5,3.10847]
[1742459274973,5.3741,2013.6,2013.5,3.86757]
[1742459276992,6.36722,2013.6,2013.5,3.86757]
[1742459277190,6.36722,2013.6,2013.5,2.34377]
[1742459277590,6.36722,2013.6,2013.5,1.3506]
[1742459278091,0.99317,2013.5,2013.4,3.2078]
[1742459278288,2.32087,2013.5,2013.4,3.2078]
[1742459278793,2.32087,2013.5,2013.4,4.6018]
[1742459278994,2.32087,2013.5,2013.4,5.59502]
[1742459279287,1.3277,2013.5,2013.4,5.59502]
[1742459279994,2.32087,2013.5,2013.4,4.6018]
[1742459281082,2.32087,2013.5,2013.4,3.2078]
[1742459282490,2.32087,2013.5,2013.4,4.5872]
[1742459282787,2.32087,2013.5,2013.4,1.3794]
[1742459283099,1.3277,2013.5,2013.4,2.37262]
[1742459284195,1.3277,2013.5,2013.4,5.58042]
[1742459284984,2.32087,2013.5,2013.4,5.58042]
[1742459285181,1.3277,2013.5,2013.4,5.58042]
[1742459286289,1.3277,2013.5,2013.4,6.36412]
[1742459287587,3.211,2013.7,2013.6,0.99308]
[1742459287995,4.0087,2013.7,2013.6,0.99308]
[1742459288791,6.051,2013.7,2013.6,0.99308]
[1742459289091,6.051,2013.7,2013.5,1.3807]
[1742459289292,1.3628,2013.6,2013.5,2.37386]
[1742459289696,0.99301,2013.9,2013.5,1.3807]
[1742459289892,3.21,2013.8,2013.7,0.99307]
[1742459290197,3.21,2013.8,2013.7,2.36787]
[1742459290393,4.5728,2013.8,2013.7,3.11777]
[1742459290798,1.3628,2013.8,2013.7,3.11777]
[1742459290988,5.66808,2014.1,2013.9,0.99293]
[1742459291188,4.6752,2014.1,2014.0,0.99292]
[1742459291393,4.6774,2014.1,2014.0,4.20072]
[1742459291792,1.4674,2014.1,2014.0,4.20072]
[1742459291996,4.6774,2014.1,2014.0,4.20072]
[1742459292196,6.0325,2014.1,2014.0,3.2078]
[1742459292393,6.0325,2014.1,2014.0,4.20072]
[1742459292696,6.0325,2014.1,2014.0,5.50562]
[1742459293099,2.8225,2014.1,2014.0,6.26462]
[1742459293793,3.81538,2014.1,2014.0,5.2717]
[1742459293990,3.81538,2014.1,2014.0,6.26462]
[1742459294298,3.81538,2014.1,2014.0,5.2717]
[1742459294593,3.81538,2014.1,2014.0,6.26462]
[1742459294798,2.8225,2014.1,2014.0,6.26462]
[1742459295401,3.81538,2014.1,2014.0,5.50562]
[1742459295600,3.81538,2014.1,2014.0,4.5127]
[1742459295900,3.81538,2014.1,2014.0,3.2078]
[1742459297198,2.8225,2014.1,2014.0,5.51322]
[1742459298603,3.81538,2014.1,2014.0,4.5203]
[1742459299302,3.81538,2014.1,2014.0,3.2078]
[1742459299694,0.99297,2013.9,2013.8,0.00746343]
[1742459299896,3.21,2013.9,2013.8,0.00746343]
[1742459300095,3.21,2013.9,2013.8,1.31046343]
[1742459300297,4.20297,2013.9,2013.8,1.31046343]
[1742459301094,3.21,2013.9,2013.8,1.31046343]
[1742459301294,3.209,2013.9,2013.8,1.31046343]
[1742459301498,5.59137,2013.9,2013.8,1.31046343]
[1742459303097,2.48262,2013.8,2013.4,3.2078]
[1742459303306,0.99317,2013.5,2013.4,3.2078]
[1742459304000,4.20217,2013.5,2013.4,3.2078]
[1742459304504,4.20217,2013.5,2013.4,4.5365]
[1742459305194,3.209,2013.5,2013.4,5.52972]
[1742459305390,3.209,2013.5,2013.4,4.5365]
[1742459305391,4.20217,2013.5,2013.4,4.5365]
[1742459305595,5.60967,2013.5,2013.4,4.5365]
[1742459306103,4.6165,2013.5,2013.4,4.5365]
[1742459306302,5.60967,2013.5,2013.4,4.5365]
[1742459307010,4.6165,2013.5,2013.4,5.52972]
[1742459307504,4.20217,2013.5,2013.4,4.5365]
[1742459307807,5.55077,2013.5,2013.4,4.5365]
[1742459308506,4.5576,2013.5,2013.4,1.3287]
[1742459308699,4.5576,2013.5,2013.4,2.32192]
[1742459308900,4.5576,2013.5,2013.4,1.3287]
[1742459309499,5.55077,2013.5,2013.4,1.3287]
[1742459311105,4.5576,2013.5,2013.4,1.3287]
[1742459311410,5.55077,2013.5,2013.4,1.3287]
[1742459312404,4.5576,2013.5,2013.4,2.32192]
[1742459312709,4.5576,2013.5,2013.4,1.3287]
[1742459312899,5.55077,2013.5,2013.4,1.3287]
[1742459315410,5.55077,2013.5,2013.2,6.266e-05]
[1742459315411,0.99327,2013.3,2013.2,6.266e-05]
[1742459315614,4.20227,2013.3,2013.2,6.266e-05]
[1742459316212,6.35447,2013.3,2013.2,6.266e-05]
[1742459322315,6.43904996,2013.3,2013.2,6.266e-05]
[1742459322514,8.93904996,2013.3,2013.2,6.266e-05]
[1742459327816,3.2078,2013.9,2013.3,2.48313]
[1742459328121,0.99293,2014.0,2013.8,0.99302]
[1742459328308,4.23892,2014.0,2013.9,1.3482]
[1742459330011,4.23892,2014.0,2013.4,0.7604]
[1742459330012,2.4826,2013.8,2013.4,0.7604]
[1742459330316,0.99317,2013.5,2013.4,1.5026]
[1742459330517,3.244,2013.5,2013.4,1.5026]
[1742459330727,3.244,2013.5,2013.4,2.49582]
[1742459331121,3.246,2013.5,2013.4,2.49582]
[1742459332427,2.344,2013.7,2013.5,0.99317]
[1742459332623,2.344,2013.7,2013.6,1.3353]
[1742459332819,5.59,2013.7,2013.6,1.3353]
[1742459333630,5.588,2013.7,2013.6,1.3353]
[1742459334132,0.99327,2013.3,2013.2,6.266e-05]
[1742459334428,4.23927,2013.3,2013.2,6.266e-05]
[1742459334818,5.59217,2013.3,2013.2,6.266e-05]
[1742459335429,8.90969428,2013.3,2013.2,6.266e-05]
[1742459335627,8.90970365,2013.3,2013.2,6.266e-05]
[1742459337023,6.40970365,2013.3,2013.2,6.266e-05]
[1742459337626,3.16370365,2013.3,2013.2,6.266e-05]
[1742459337936,8.91370365,2013.3,2013.2,6.266e-05]
[1742459338635,6.41370365,2013.3,2013.2,6.266e-05]
[1742459338828,6.32977,2013.3,2013.2,6.266e-05]
[1742459340432,2.0865,2013.3,2013.2,6.266e-05]
[1742459340634,5.59417,2013.3,2013.2,6.266e-05]
[1742459340933,5.59417,2013.3,2013.2,1.38276266]
[1742459341326,2.34617,2013.3,2013.2,1.38276266]
[1742459341531,3.249,2013.3,2013.2,1.38276266]
[1742459342138,3.249,2013.3,2013.2,3.93218266]
[1742459343028,3.2078,2013.4,2013.3,0.99327]
[1742459343240,6.4598,2013.4,2013.3,2.30067]
[1742459343835,3.252,2013.4,2013.3,2.30067]
[1742459344643,4.20088,2013.7,2013.5,0.99317]
[1742459344840,4.24412,2013.6,2013.4,1.2981]
[1742459345236,3.2078,2013.7,2013.4,2.29132]
[1742459345237,3.25,2013.5,2013.4,2.29132]
[1742459348639,3.2078,2013.7,2013.6,0.99312]
[1742459348951,6.4538,2013.7,2013.6,0.99312]
[1742459349341,6.4538,2013.7,2013.6,1.74502]
[1742459352055,6.4538,2013.7,2013.6,0.7519]
[1742459352248,7.44687,2013.7,2013.6,0.7519]
[1742459353255,6.4538,2013.7,2013.6,0.7519]
[1742459353547,6.4538,2013.7,2013.6,1.74502]
[1742459353753,6.4538,2013.7,2013.6,2.54112]
[1742459353954,6.4538,2013.7,2013.6,1.548]
[1742459354355,6.4538,2013.7,2013.6,3.95472]
[1742459357351,6.4538,2013.7,2013.6,2.9616]
[1742459357558,6.4538,2013.7,2013.6,3.95472]
[1742459357759,7.8558,2013.7,2013.6,3.95472]
[1742459357959,7.8558,2013.7,2013.6,2.9616]
[1742459358160,7.8558,2013.7,2013.6,3.95472]
[1742459359859,7.8558,2013.7,2013.6,2.9616]
[1742459360366,6.4538,2013.7,2013.6,3.95472]
[1742459360866,7.44687,2013.7,2013.6,2.9616]
[1742459361069,7.8716,2013.7,2013.6,2.9616]
[1742459361862,7.8716,2013.7,2013.6,2.40672]
[1742459362063,7.8716,2013.7,2013.6,1.4136]
[1742459362364,7.8716,2013.7,2013.6,2.40672]
[1742459363566,4.6638,2013.7,2013.6,2.40672]
[1742459365358,4.6638,2013.7,2013.6,1.4136]
[1742459365558,5.65687,2013.7,2013.6,1.4136]
[1742459365967,0.99321,2013.5,2013.3,4.7025]
[1742459366172,3.13563,2013.6,2013.4,1.3998]
[1742459366467,4.5878,2013.5,2013.4,2.39302]
[1742459367260,4.5878,2013.5,2013.4,1.3998]
[1742459367467,5.58097,2013.5,2013.4,1.3998]
[1742459369172,0.99327,2013.4,2013.2,6.266e-05]
[1742459369364,0.99327,2013.4,2013.2,1.39346266]
[1742459369365,3.226,2013.3,2013.2,1.39346266]
[1742459369565,4.21927,2013.3,2013.2,1.39346266]
[1742459369871,5.62517,2013.3,2013.2,1.39346266]
[1742459371563,4.6319,2013.3,2013.2,1.39346266]
[1742459371763,5.62517,2013.3,2013.2,1.39346266]
[1742459372169,4.6319,2013.3,2013.2,1.39346266]
[1742459372468,4.6319,2013.3,2013.2,2.38678266]
[1742459372769,4.6319,2013.3,2013.2,1.39346266]
[1742459373570,4.6319,2013.3,2013.2,2.38678266]
[1742459374267,4.6279,2013.3,2013.2,2.38678266]
[1742459374475,3.22,2013.3,2013.2,2.38678266]
[1742459374663,4.5146,2013.3,2013.2,2.38678266]
[1742459375268,3.22,2013.3,2013.2,4.60126266]
[1742459375470,3.22,2013.3,2013.2,5.59458266]
[1742459376574,4.5146,2013.3,2013.2,5.59458266]
[1742459378679,4.5106,2013.3,2013.2,5.59458266]
[1742459380479,4.5106,2013.3,2013.2,4.60126266]
[1742459380480,5.50387,2013.3,2013.2,4.60126266]
[1742459380778,6.23197,2013.3,2013.2,4.60126266]
[1742459381782,5.2387,2013.3,2013.2,5.59458266]
[1742459382083,6.23197,2013.3,2013.2,1.39346266]
[1742459382376,7.01117,2013.3,2013.2,1.39346266]
[1742459382577,7.01117,2013.3,2013.2,6.266e-05]
[1742459382778,10.21897,2013.3,2013.2,6.266e-05]
[1742459382975,9.2257,2013.3,2013.2,6.266e-05]
[1742459383175,10.21897,2013.3,2013.2,6.266e-05]
[1742459384375,10.21897,2013.3,2013.2,1.36486266]
[1742459385883,6.0179,2013.3,2013.2,1.36486266]
[1742459386186,6.0179,2013.3,2013.2,2.16846266]
[1742459386385,6.0179,2013.3,2013.2,3.16178266]
[1742459386776,7.01117,2013.3,2013.2,2.16846266]
[1742459387883,7.01117,2013.3,2013.2,1.36486266]
[1742459388284,10.21897,2013.3,2013.2,1.36486266]
[1742459392291,7.01117,2013.3,2013.2,1.36486266]
[1742459392590,10.21897,2013.3,2013.2,1.36486266]
[1742459397593,9.2257,2013.3,2013.2,2.35818266]
[1742459397793,9.2257,2013.3,2013.2,1.36486266]
[1742459398093,9.2257,2013.3,2013.2,2.35818266]
[1742459398394,9.2257,2013.3,2013.2,1.36486266]
[1742459399294,9.2257,2013.3,2013.2,2.35818266]
[1742459399589,9.2257,2013.3,2013.2,1.36486266]
[1742459399799,9.2257,2013.3,2013.2,2.35818266]
[1742459400093,10.21897,2013.3,2013.2,1.36486266]
[1742459400299,6.4238,2013.3,2013.2,1.36486266]
[1742459400494,3.216,2013.3,2013.2,1.36486266]
[1742459400689,4.20927,2013.3,2013.2,1.36486266]
[1742459400994,5.59487,2013.3,2013.2,1.36486266]
[1742459401588,5.59487,2013.3,2013.2,6.266e-05]
[1742459403499,5.67880017,2013.3,2013.2,6.266e-05]
[1742459404401,5.67880082,2013.3,2013.2,6.266e-05]
[1742459406288,6.58953199,2013.3,2013.2,6.266e-05]
[1742459407394,5.67880082,2013.3,2013.2,6.266e-05]
[1742459407596,2.37887,2013.3,2013.2,6.266e-05]
[1742459407791,5.67280299,2013.3,2013.2,6.266e-05]
[1742459408106,5.58987,2013.3,2013.2,6.266e-05]
[1742459408796,5.67379452,2013.3,2013.2,6.266e-05]
[1742459410006,8.17379452,2013.3,2013.2,6.266e-05]
[1742459410212,0.99357,2012.7,2012.6,1.4792]
[1742459410512,4.20457,2012.7,2012.6,1.4792]
[1742459410893,0.99367,2012.5,2012.2,4.20157]
[1742459411101,3.211,2012.5,2012.3,2.52506]
[1742459411400,3.211,2012.5,2012.4,0.99371]
[1742459411607,3.211,2012.5,2012.4,2.41141]
[1742459411799,3.211,2012.5,2012.4,1.4177]
[1742459412109,3.211,2012.5,2012.4,2.41141]
[1742459415419,3.211,2012.5,2012.4,1.4177]
[1742459415420,4.20466,2012.5,2012.4,1.4177]
[1742459415607,0.99371,2012.4,2012.3,1.415]
[1742459415922,2.28731,2012.4,2012.3,1.415]
[1742459416112,0.99371,2012.4,2012.3,1.415]
[1742459416614,3.211,2012.5,2012.3,2.40874]
[1742459416814,4.20467,2012.5,2012.3,2.40874]
[1742459417118,4.20467,2012.5,2012.4,2.0872]
[1742459417719,5.54747,2012.5,2012.4,2.0872]
[1742459418922,4.5538,2012.5,2012.4,2.0872]
[1742459419513,4.5538,2012.5,2012.4,3.08091]
[1742459419709,4.5538,2012.5,2012.4,2.0872]
[1742459420310,4.5538,2012.5,2012.4,3.08091]
[1742459420512,3.211,2012.5,2012.4,2.0872]
[1742459420711,4.20466,2012.5,2012.4,2.0872]
[1742459421821,4.20466,2012.5,2012.4,1.415]
[1742459422122,5.53416,2012.5,2012.4,1.415]
[1742459422523,0.99376,2012.3,2012.2,3.21526343]
[1742459422828,4.21276,2012.3,2012.2,3.21526343]
[1742459423325,4.90206,2012.3,2012.2,3.21526343]
[1742459423631,6.18726,2012.3,2012.2,3.21526343]
[1742459429020,0.99381,2012.2,2012.1,1.33742004]
[1742459429225,0.99391,2012.0,2011.9,0.6642]
[1742459429523,7.41671,2012.0,2011.9,0.6642]
[1742459430120,8.76731,2012.0,2011.9,0.6642]
[1742459432720,8.76731,2012.0,2011.9,1.3043]
[1742459436819,0.99396,2011.9,2011.8,1.3997]
[1742459437127,2.37046,2011.9,2011.8,1.3997]
[1742459437425,3.06336,2011.9,2011.8,1.3997]
[1742459441729,4.20596,2011.9,2011.8,1.3997]
[1742459446827,4.20596,2011.9,2011.8,2.39371]
[1742459447231,4.20596,2011.9,2011.8,1.3997]
[1742459447730,0.99401,2011.8,2011.7,0.00746343]
[1742459447925,0.99401,2011.8,2011.7,3.01552343]
[1742459448127,0.99401,2011.8,2011.7,2.02146343]
[1742459448735,0.99401,2011.8,2011.7,3.01552343]
[1742459449537,0.99401,2011.8,2011.7,2.02146343]
[1742459450627,4.20601,2011.8,2011.7,2.02146343]
[1742459451633,3.212,2011.8,2011.7,2.02146343]
[1742459451833,4.20601,2011.8,2011.7,3.01552343]
[1742459453628,3.212,2011.8,2011.7,3.01552343]
[1742459455033,4.20601,2011.8,2011.7,3.01552343]
[1742459456139,3.212,2011.8,2011.7,3.01552343]
[1742459456343,3.212,2011.8,2011.7,3.68999911]
[1742459456839,3.212,2011.8,2011.7,3.01552343]
[1742459457239,3.212,2011.8,2011.7,3.69000373]
[1742459458031,3.212,2011.8,2011.7,3.68985328]
[1742459459939,4.20601,2011.8,2011.7,3.68985328]
[1742459460128,3.212,2011.8,2011.7,3.68985973]
[1742459460334,4.20601,2011.8,2011.7,3.68985973]
[1742459460535,3.212,2011.8,2011.7,3.68985973]
[1742459461344,0.6941,2012.2,2012.1,0.99386]
[1742459461539,4.5006,2012.2,2012.1,0.99386]
[1742459462040,3.212,2012.2,2012.1,0.99386]
[1742459462341,3.212,2012.2,2012.1,2.31266]
[1742459462533,4.2016,2012.3,2012.2,0.99381]
[1742459462736,4.2016,2012.3,2012.2,2.31261]
[1742459462935,5.4902,2012.3,2012.2,2.31261]
[1742459466445,0.99381,2012.2,2012.1,5.96]
[1742459466650,2.40591,2012.2,2012.1,7.3379]
[1742459467036,5.61791,2012.2,2012.1,5.96]
[1742459470046,0.99396,2011.9,2011.8,1.3779]
[1742459470344,4.20596,2011.9,2011.8,1.3779]
[1742459470745,3.212,2011.9,2011.8,2.37191]
[1742459471042,3.212,2011.9,2011.8,1.3779]
[1742459471337,4.5322,2011.9,2011.8,1.3779]
[1742459471544,5.52616,2011.9,2011.8,1.3779]
[1742459471748,4.5322,2011.9,2011.8,1.3779]
[1742459471934,4.5322,2011.9,2011.7,1.00149343]
[1742459471935,4.5322,2011.9,2011.7,0.00746343]
[1742459472245,2.99301,2011.8,2011.7,1.33986343]
[1742459472552,1.999,2011.8,2011.7,1.33986343]
[1742459472744,1.999,2011.8,2011.7,2.33392343]
[1742459473547,1.3202,2011.8,2011.7,2.33392343]
[1742459473842,4.20597,2011.9,2011.7,2.33390343]
[1742459474150,4.20597,2011.9,2011.8,1.2806]
[1742459474344,5.54886,2011.9,2011.8,1.2806]
[1742459474540,2.33686,2011.9,2011.8,1.2806]
[1742459474739,5.54886,2011.9,2011.8,1.2806]
[1742459476141,6.25196,2011.9,2011.8,1.2806]
[1742459479547,0.99401,2011.8,2011.7,0.00746343]
[1742459479747,2.40531,2011.8,2011.7,1.34526343]
[1742459480252,1.4113,2011.8,2011.7,1.34526343]
[1742459480448,2.40531,2011.8,2011.7,1.34526343]
[1742459481249,1.4113,2011.8,2011.7,1.34526343]
[1742459481644,2.40531,2011.8,2011.7,1.34526343]
[1742459484150,2.40531,2011.8,2011.7,2.33932343]
[1742459484356,2.40531,2011.8,2011.7,1.34526343]
[1742459488557,1.4113,2011.8,2011.7,1.34526343]
[1742459488751,1.4113,2011.8,2011.7,2.33932343]
[1742459490348,2.40531,2011.8,2011.7,2.33932343]
[1742459490651,2.40531,2011.8,2011.7,1.34526343]
[1742459491062,2.40531,2011.8,2011.7,2.33932343]
[1742459491555,2.40531,2011.8,2011.7,1.34526343]
[1742459491955,1.4113,2011.8,2011.7,2.33932343]
[1742459492155,4.90906,2011.9,2011.8,0.99401]
[1742459492353,4.90906,2011.9,2011.8,3.04731]
[1742459492354,6.33056,2011.9,2011.8,3.04731]
[1742459492755,5.62746,2011.9,2011.8,2.0533]
[1742459493056,5.62746,2011.9,2011.8,3.04731]
[1742459493656,5.62746,2011.9,2011.8,2.0533]
[1742459494359,5.62746,2011.9,2011.8,1.3708]
[1742459496058,5.62746,2011.9,2011.8,2.36481]
[1742459496252,4.6335,2011.9,2011.8,2.36481]
[1742459498460,5.62746,2011.9,2011.8,2.36481]
[1742459498962,5.62746,2011.9,2011.8,1.3708]
[1742459501771,4.6335,2011.9,2011.8,1.3708]
[1742459501967,5.62746,2011.9,2011.8,1.3708]
[1742459504275,4.6335,2011.9,2011.8,2.36481]
[1742459505368,5.62746,2011.9,2011.8,2.36481]
[1742459505673,5.62746,2011.9,2011.8,1.3708]
[1742459505866,5.62746,2011.9,2011.8,2.36481]
[1742459507079,5.62746,2011.9,2011.8,1.3708]
[1742459509770,5.62746,2011.9,2011.7,0.00746343]
[1742459509771,0.99401,2011.8,2011.7,0.00746343]
[1742459509976,2.95541,2011.8,2011.7,1.38206343]
[1742459517874,1.9614,2011.8,2011.7,2.37612343]
[1742459518079,1.2816,2011.8,2011.7,2.37612343]
[1742459518583,1.3437,2012.0,2011.9,0.99396]
[1742459518785,1.3437,2012.0,2011.8,1.4041]
[1742459518786,5.9143,2012.0,2011.8,1.4041]
[1742459518987,5.9143,2012.0,2011.9,0.99396]
[1742459519188,5.9143,2012.0,2011.9,1.68916]
[1742459519378,6.90821,2012.0,2011.9,0.6952]
[1742459519576,3.2078,2012.1,2012.0,0.99391]
[1742459519792,4.20153,2012.4,2012.2,0.99378]
[1742459520086,3.2078,2012.4,2012.3,2.39786]
[1742459520287,6.21151,2012.5,2012.3,2.39786]
[1742459520480,6.21151,2012.5,2012.4,2.056]
[1742459521888,4.20471,2012.5,2012.4,3.04971]
[1742459522088,0.00746343,2012.6,2012.5,0.99366]
[1742459522284,0.00746343,2012.6,2012.5,3.07696]
[1742459523990,1.00108343,2012.6,2012.5,2.0833]
[1742459524492,0.00746343,2012.6,2012.5,3.07696]
[1742459525889,1.00108343,2012.6,2012.5,8.0433]
[1742459526384,0.00746343,2012.6,2012.5,9.03696]
[1742459533798,0.00746343,2012.6,2012.5,12.24476]
[1742459534188,3.21,2012.8,2012.7,0.99357]
[1742459534386,3.21,2012.8,2012.6,1.2935]
[1742459534591,0.99357,2012.7,2012.6,1.2935]
[1742459534892,2.30077,2012.7,2012.6,1.2935]
[1742459535395,0.99362,2012.6,2012.5,5.96]
[1742459535702,6.89642,2012.6,2012.5,5.96]
[1742459535891,8.38692,2012.6,2012.1,1.2935]
[1742459536096,8.38692,2012.6,2011.9,0.99396]
[1742459536097,0.9939,2012.1,2011.9,0.99396]
[1742459536293,4.6093,2012.0,2011.9,0.99396]
[1742459536493,4.6093,2012.0,2011.9,2.35406]
[1742459538292,5.60321,2012.0,2011.9,1.3601]
[1742459539390,5.60321,2012.0,2011.9,2.35406]
[1742459539391,4.6093,2012.0,2011.9,2.35406]
[1742459539595,3.21,2012.0,2011.9,2.35406]
[1742459540400,1.3856,2012.1,2012.0,0.99391]
[1742459540701,1.3856,2012.1,2012.0,2.35441]
[1742459541598,2.37946,2012.1,2012.0,2.35441]
[1742459542498,4.5956,2012.2,2012.1,0.99386]
[1742459542794,6.94111,2012.2,2012.1,0.99386]
[1742459543414,5.9473,2012.2,2012.0,1.3605]
[1742459543599,1.3517,2012.1,2012.0,1.3605]
[1742459543992,1.3517,2012.1,2012.0,2.35438]
[1742459544307,2.34556,2012.1,2012.0,2.35438]
[1742459544809,2.34556,2012.1,2012.0,1.3605]
[1742459545099,2.34556,2012.1,2012.0,2.35441]
[1742459546294,2.34556,2012.1,2012.0,1.3605]
[1742459546701,2.34556,2012.1,2012.0,2.35441]
[1742459547005,1.3517,2012.1,2012.0,2.35441]
[1742459547396,2.34556,2012.1,2012.0,2.35441]
[1742459547597,2.34556,2012.1,2012.0,1.3605]
[1742459549603,1.3517,2012.1,2012.0,2.35441]
[1742459550205,1.3517,2012.1,2012.0,5.56221]
[1742459550404,4.5956,2012.2,2012.1,0.99386]
[1742459550592,5.9013,2012.2,2012.1,2.33066]
[1742459551798,6.89511,2012.2,2012.1,2.33066]
[1742459553002,5.9013,2012.2,2012.1,2.33066]
[1742459553406,5.2225,2012.2,2012.1,2.33066]
[1742459553603,1.3057,2012.2,2012.1,2.33066]
[1742459554209,2.29951,2012.2,2012.1,2.33066]
[1742459554502,1.3057,2012.2,2012.1,2.33066]
[1742459554707,2.29951,2012.2,2012.1,2.33066]
[1742459554902,2.29951,2012.2,2012.1,1.3368]
[1742459556307,1.3057,2012.2,2011.9,5.95253657]
[1742459556501,4.5643,2012.1,2012.0,2.30321]
[1742459556913,5.55816,2012.1,2012.0,2.30321]
[1742459557514,5.55816,2012.1,2012.0,1.3093]
[1742459558411,5.55816,2012.1,2012.0,2.30321]
[1742459559112,4.5643,2012.1,2012.0,2.30321]
[1742459559315,5.55816,2012.1,2012.0,2.30321]
[1742459559717,5.55816,2012.1,2012.0,1.3093]
[1742459560220,3.21,2012.1,2012.0,2.30321]
[1742459561216,5.53266,2012.1,2012.0,2.30321]
[1742459561612,4.5388,2012.1,2012.0,2.30321]
[1742459563321,3.21,2012.1,2012.0,5.51101]
[1742459563516,1.3357,2012.4,2012.2,0.99381]
[1742459563517,2.3226,2012.3,2012.2,0.99381]
[1742459563716,5.5326,2012.3,2012.2,0.99381]
[1742459564416,5.5326,2012.3,2012.2,2.36581]
[1742459564818,4.5388,2012.3,2012.2,2.36581]
[1742459565914,4.5388,2012.3,2012.2,3.03351]
[1742459566117,0.99369,2012.5,2012.4,0.99371]
[1742459566315,5.50089,2012.5,2012.4,0.99371]
[1742459566818,5.50089,2012.5,2012.4,0.661]
[1742459567121,0.99371,2012.4,2012.3,1.372]
[1742459567421,2.36751,2012.4,2012.3,1.372]
[1742459568314,0.99381,2012.2,2012.1,6.61353657]
[1742459568513,0.99381,2012.2,2012.1,7.60739657]
[1742459569019,0.99381,2012.2,2012.1,6.61353657]
[1742459569214,1.65231,2012.2,2012.1,7.60739657]
[1742459569720,3.02611,2012.2,2012.1,2.99126]
[1742459569912,2.0323,2012.2,2012.1,1.9974]
[1742459570112,2.0323,2012.2,2012.1,2.99126]
[1742459572520,3.02611,2012.2,2012.1,2.99126]
[1742459575824,2.0323,2012.2,2012.1,2.99126]
[1742459576230,3.8518,2012.3,2012.2,0.99381]
[1742459576231,3.21,2012.3,2012.2,0.99381]
[1742459576526,0.99375,2012.4,2012.3,0.99376]
[1742459577331,2.39505,2012.4,2012.3,0.99376]
[1742459577625,2.39501,2012.4,2012.3,0.99376]
[1742459578728,1.4013,2012.4,2012.3,0.99376]
[1742459579928,2.39501,2012.4,2012.3,0.99376]
[1742459580128,1.4013,2012.4,2012.3,0.99376]
[1742459581918,2.39501,2012.4,2012.3,0.99376]
[1742459583424,1.4013,2012.4,2012.3,0.99376]
[1742459583934,2.39501,2012.4,2012.3,0.99376]
[1742459584737,1.4013,2012.4,2012.3,0.99376]
[1742459585034,0.99376,2012.3,2012.2,2.40077]
[1742459585232,0.99376,2012.3,2012.2,1.407]
[1742459585430,1.66296,2012.3,2012.2,1.407]
[1742459585631,4.87196,2012.3,2012.2,1.407]
[1742459586436,0.99381,2012.2,2012.1,5.95253657]
[1742459586632,2.99921,2012.2,2012.1,5.95253657]
[1742459587436,0.99391,2012.0,2011.9,1.356]
[1742459587738,4.20291,2012.0,2011.9,1.356]
[1742459587934,4.20291,2012.0,2011.9,2.34996]
[1742459588134,4.90521,2012.0,2011.9,1.356]
[1742459590236,0.99401,2011.8,2011.7,5.96]
[1742459590434,4.20301,2011.8,2011.7,5.96]
[1742459590734,4.20301,2011.8,2011.7,0.00746343]
[1742459590936,4.90411,2011.8,2011.7,0.00746343]
[1742459596138,4.90411,2011.8,2011.7,1.37326343]
[1742459596433,3.209,2011.8,2011.7,2.36732343]
[1742459597327,4.5478,2011.8,2011.7,2.36732343]
[1742459597943,4.20301,2011.8,2011.7,2.36728343]
[1742459598240,4.20301,2011.8,2011.7,1.37326343]
[1742459598437,3.209,2011.8,2011.7,2.36732343]
[1742459598943,4.20301,2011.8,2011.7,1.37326343]